Workbook

Sheet Production plan
B2: ok

Sheet France
B2: France
G3: POO1 | K3: POO2 | O3: POO3
F4: 1A | G4: 1B | H4: 1C | I4: 1D | J4: 1E | K4: 2A | L4: 2B | M4: 2C | N4: 2D | O4: 3A | P4: 3B | Q4: 3C | R4: 3D | S4: 3E | T4: TOTAL
B5: December 2014 | C5: Ligne A | D5: =CONCATENATE(C5,B5) -> Ligne ADecember 2014 | E5: Ressource | F5: =6+3 -> 9 | G5: =F5+6 -> 15 | H5: =G5+6 -> 21 | I5: 27 | J5: 33 | K5: 39 | L5: 45 | M5: 51 | N5: 57 | O5: 63 | P5: 69 | Q5: 75 | R5: 81 | S5: 87 | T5: =SUM(F5:S5) -> 672
B6: January | C6: Ligne A | D6: Ligne AJanuary | E6: Ressource | F6: 0 | G6: =F6+6 -> 6 | H6: 12 | I6: 18 | J6: 24 | K6: 30 | L6: 36 | M6: 42 | N6: 48 | O6: 54 | P6: 60 | Q6: 66 | R6: 72 | S6: 78 | T6: 546
B7: February | C7: Ligne A | D7: Ligne AFebruary | E7: Ressource | F7: 0 | G7: =F7+6 -> 6 | H7: 12 | I7: 18 | J7: 24 | K7: 30 | L7: 36 | M7: 42 | N7: 48 | O7: 54 | P7: 60 | Q7: 66 | R7: 72 | S7: 78 | T7: 546
B8: March | C8: Ligne A | D8: Ligne AMarch | E8: Ressource | F8: 0 | G8: =F8+6 -> 6 | H8: 12 | I8: 18 | J8: 24 | K8: 30 | L8: 36 | M8: 42 | N8: 48 | O8: 54 | P8: 60 | Q8: 66 | R8: 72 | S8: 78 | T8: 546
B9: April | C9: Ligne A | D9: Ligne AApril | E9: Ressource | F9: 0 | G9: =F9+6 -> 6 | H9: 12 | I9: 18 | J9: 24 | K9: 30 | L9: 36 | M9: 42 | N9: 48 | O9: 54 | P9: 60 | Q9: 66 | R9: 72 | S9: 78 | T9: 546
B10: May | C10: Ligne A | D10: Ligne AMay | E10: Ressource | F10: 0 | G10: =F10+6 -> 6 | H10: 12 | I10: 18 | J10: 24 | K10: 30 | L10: 36 | M10: 42 | N10: 48 | O10: 54 | P10: 60 | Q10: 66 | R10: 72 | S10: 78 | T10: 546
B11: June | C11: Ligne A | D11: Ligne AJune | E11: Ressource | F11: 0 | G11: =F11+6 -> 6 | H11: 12 | I11: 18 | J11: 24 | K11: 30 | L11: 36 | M11: 42 | N11: 48 | O11: 54 | P11: 60 | Q11: 66 | R11: 72 | S11: 78 | T11: 546
B12: July | C12: Ligne A | D12: Ligne AJuly | E12: Ressource | F12: 0 | G12: =F12+6 -> 6 | H12: 12 | I12: 18 | J12: 24 | K12: 30 | L12: 36 | M12: 42 | N12: 48 | O12: 54 | P12: 60 | Q12: 66 | R12: 72 | S12: 78 | T12: 546
B13: August | C13: Ligne A | D13: Ligne AAugust | E13: Ressource | F13: 0 | G13: =F13+6 -> 6 | H13: 12 | I13: 18 | J13: 24 | K13: 30 | L13: 36 | M13: 42 | N13: 48 | O13: 54 | P13: 60 | Q13: 66 | R13: 72 | S13: 78 | T13: 546
B14: September | C14: Ligne A | D14: Ligne ASeptember | E14: Ressource | F14: 0 | G14: =F14+6 -> 6 | H14: 12 | I14: 18 | J14: 24 | K14: 30 | L14: 36 | M14: 42 | N14: 48 | O14: 54 | P14: 60 | Q14: 66 | R14: 72 | S14: 78 | T14: 546
B15: October | C15: Ligne A | D15: Ligne AOctober | E15: Ressource | F15: 0 | G15: =F15+6 -> 6 | H15: 12 | I15: 18 | J15: 24 | K15: 30 | L15: 36 | M15: 42 | N15: 48 | O15: 54 | P15: 60 | Q15: 66 | R15: 72 | S15: 78 | T15: 546
B16: November | C16: Ligne A | D16: Ligne ANovember | E16: Ressource | F16: 0 | G16: =F16+6 -> 6 | H16: 12 | I16: 18 | J16: 24 | K16: 30 | L16: 36 | M16: 42 | N16: 48 | O16: 54 | P16: 60 | Q16: 66 | R16: 72 | S16: 78 | T16: 546
B17: December | C17: Ligne A | D17: Ligne ADecember | E17: Ressource | F17: 0 | G17: =F17+6 -> 6 | H17: 12 | I17: 18 | J17: 24 | K17: 30 | L17: 36 | M17: 42 | N17: 48 | O17: 54 | P17: 60 | Q17: 66 | R17: 72 | S17: 78 | T17: 546
B18: January 2016 | C18: Ligne A | D18: Ligne AJanuary 2016 | E18: Ressource | F18: 0 | G18: =F18+6 -> 6 | H18: 12 | I18: 18 | J18: 24 | K18: 30 | L18: 36 | M18: 42 | N18: 48 | O18: 54 | P18: 60 | Q18: 66 | R18: 72 | S18: 78 | T18: 546
B20: Production plan adherence | F20: =F7/F5 -> 0% | G20: =G7/G5 -> 40% | H20: =H7/H5 -> 57% | I20: 67% | J20: =J7/J5 -> 73% | K20: =K8/K6 -> 100% | L20: =L8/L6 -> 100% | M20: 100% | N20: =N8/N6 -> 100% | O20: =O9/O7 -> 100% | P20: =P9/P7 -> 100% | Q20: 100% | R20: =R9/R7 -> 100% | S20: =S10/S8 -> 100%

Sheet Espagne
B2: France
G3: POO1 | K3: POO2 | O3: POO3
F4: 1A | G4: 1B | H4: 1C | I4: 1D | J4: 1E | K4: 2A | L4: 2B | M4: 2C | N4: 2D | O4: 3A | P4: 3B | Q4: 3C | R4: 3D | S4: 3E | T4: TOTAL
B5: December 2014 | C5: Ligne A | D5: =CONCATENATE(C5,B5) -> Ligne ADecember 2014 | E5: Ressource | F5: 6 | G5: 21 | H5: 18 | I5: 18 | J5: 19 | K5: 17 | L5: 17 | M5: 17 | N5: 18 | O5: 17 | P5: 16 | Q5: 17 | R5: 13 | S5: 14 | T5: =SUM(F5:S5) -> 228
B6: January | C6: Ligne A | D6: Ligne AJanuary | E6: Ressource | F6: 0 | G6: 12 | H6: 17 | I6: 12 | J6: 15 | K6: 22 | L6: 18 | M6: 18 | N6: 18 | O6: 18 | P6: 18 | Q6: 18 | R6: 18 | S6: 18 | T6: 222
B7: February | C7: Ligne A | D7: Ligne AFebruary | E7: Ressource | F7: 0 | G7: 12 | H7: 17 | I7: 12 | J7: 15 | K7: 9 | L7: 16 | M7: 14 | N7: 16 | O7: 28 | P7: 18 | Q7: 19 | R7: 18 | S7: 16 | T7: 210
B8: March | C8: Ligne A | D8: Ligne AMarch | E8: Ressource | F8: 0 | G8: 12 | H8: 17 | I8: 12 | J8: 15 | K8: 9 | L8: 16 | M8: 14 | N8: 16 | O8: 17 | P8: 16 | Q8: 15 | R8: 15 | S8: 22 | T8: 196
B9: April | C9: Ligne A | D9: Ligne AApril | E9: Ressource | F9: 0 | G9: 12 | H9: 17 | I9: 12 | J9: 15 | K9: 9 | L9: 16 | M9: 14 | N9: 16 | O9: 17 | P9: 16 | Q9: 15 | R9: 15 | S9: 11 | T9: 185
B10: May | C10: Ligne A | D10: Ligne AMay | E10: Ressource | F10: 0 | G10: 12 | H10: 17 | I10: 12 | J10: 15 | K10: 9 | L10: 16 | M10: 14 | N10: 16 | O10: 17 | P10: 16 | Q10: 15 | R10: 15 | S10: 11 | T10: 185
B11: June | C11: Ligne A | D11: Ligne AJune | E11: Ressource | F11: 0 | G11: 12 | H11: 17 | I11: 12 | J11: 15 | K11: 9 | L11: 16 | M11: 14 | N11: 16 | O11: 17 | P11: 16 | Q11: 15 | R11: 15 | S11: 11 | T11: 185
B12: July | C12: Ligne A | D12: Ligne AJuly | E12: Ressource | F12: 0 | G12: 12 | H12: 17 | I12: 12 | J12: 15 | K12: 9 | L12: 16 | M12: 14 | N12: 16 | O12: 17 | P12: 16 | Q12: 15 | R12: 15 | S12: 11 | T12: 185
B13: August | C13: Ligne A | D13: Ligne AAugust | E13: Ressource | F13: 0 | G13: 12 | H13: 17 | I13: 12 | J13: 15 | K13: 9 | L13: 16 | M13: 14 | N13: 16 | O13: 17 | P13: 16 | Q13: 15 | R13: 15 | S13: 11 | T13: 185
B14: September | C14: Ligne A | D14: Ligne ASeptember | E14: Ressource | F14: 0 | G14: 12 | H14: 17 | I14: 12 | J14: 15 | K14: 9 | L14: 16 | M14: 14 | N14: 16 | O14: 17 | P14: 16 | Q14: 15 | R14: 15 | S14: 11 | T14: 185
B15: October | C15: Ligne A | D15: Ligne AOctober | E15: Ressource | F15: 0 | G15: 12 | H15: 17 | I15: 12 | J15: 15 | K15: 9 | L15: 16 | M15: 14 | N15: 16 | O15: 17 | P15: 16 | Q15: 15 | R15: 15 | S15: 11 | T15: 185
B16: November | C16: Ligne A | D16: Ligne ANovember | E16: Ressource | F16: 0 | G16: 12 | H16: 17 | I16: 12 | J16: 15 | K16: 9 | L16: 16 | M16: 14 | N16: 16 | O16: 17 | P16: 16 | Q16: 15 | R16: 15 | S16: 11 | T16: 185
B17: December | C17: Ligne A | D17: Ligne ADecember | E17: Ressource | F17: 0 | G17: 12 | H17: 17 | I17: 12 | J17: 15 | K17: 9 | L17: 16 | M17: 14 | N17: 16 | O17: 17 | P17: 16 | Q17: 15 | R17: 15 | S17: 11 | T17: 185
B18: January 2016 | C18: Ligne A | D18: Ligne AJanuary 2016 | E18: Ressource | F18: 0 | G18: 12 | H18: 17 | I18: 12 | J18: 15 | K18: 9 | L18: 16 | M18: 14 | N18: 16 | O18: 17 | P18: 16 | Q18: 15 | R18: 15 | S18: 11 | T18: 185
B20: Production plan adherence | F20: =F7/F5 -> 0% | G20: =G7/G5 -> 57% | H20: =H7/H5 -> 94% | I20: 67% | J20: =J7/J5 -> 79% | K20: =K8/K6 -> 41% | L20: =L8/L6 -> 89% | M20: 78% | N20: =N8/N6 -> 89% | O20: =O9/O7 -> 61% | P20: =P9/P7 -> 89% | Q20: 79% | R20: =R9/R7 -> 83% | S20: =S10/S8 -> 50%

Sheet Allemagne
B2: France
G3: POO1 | K3: POO2 | O3: POO3
F4: 1A | G4: 1B | H4: 1C | I4: 1D | J4: 1E | K4: 2A | L4: 2B | M4: 2C | N4: 2D | O4: 3A | P4: 3B | Q4: 3C | R4: 3D | S4: 3E | T4: TOTAL
B5: December 2014 | C5: Ligne A | D5: =CONCATENATE(C5,B5) -> Ligne ADecember 2014 | E5: Ressource | F5: 18 | G5: =21+F5 -> 39 | H5: =21+G5 -> 60 | I5: 81 | J5: 102 | K5: 123 | L5: 144 | M5: 165 | N5: 186 | O5: 207 | P5: 228 | Q5: 249 | R5: 270 | S5: 291 | T5: =SUM(F5:S5) -> 2,163
B6: January | C6: Ligne A | D6: Ligne AJanuary | E6: Ressource | F6: 1 | G6: =21+F6 -> 22 | H6: 43 | I6: 64 | J6: 85 | K6: 106 | L6: 127 | M6: 148 | N6: 169 | O6: 190 | P6: 211 | Q6: 232 | R6: 253 | S6: 274 | T6: 1,925
B7: February | C7: Ligne A | D7: Ligne AFebruary | E7: Ressource | F7: 3 | G7: 24 | H7: 45 | I7: 66 | J7: 87 | K7: 108 | L7: 129 | M7: 150 | N7: 171 | O7: 192 | P7: 213 | Q7: 234 | R7: 255 | S7: 276 | T7: 1,953
B8: March | C8: Ligne A | D8: Ligne AMarch | E8: Ressource | F8: 5 | G8: 26 | H8: 47 | I8: 68 | J8: 89 | K8: 110 | L8: 131 | M8: 152 | N8: 173 | O8: 194 | P8: 215 | Q8: 236 | R8: 257 | S8: 278 | T8: 1,981
B9: April | C9: Ligne A | D9: Ligne AApril | E9: Ressource | F9: 7 | G9: 28 | H9: 49 | I9: 70 | J9: 91 | K9: 112 | L9: 133 | M9: 154 | N9: 175 | O9: 196 | P9: 217 | Q9: 238 | R9: 259 | S9: 280 | T9: 2,009
B10: May | C10: Ligne A | D10: Ligne AMay | E10: Ressource | F10: 8 | G10: 29 | H10: 50 | I10: 71 | J10: 92 | K10: 113 | L10: 134 | M10: 155 | N10: 176 | O10: 197 | P10: 218 | Q10: 239 | R10: 260 | S10: 281 | T10: 2,023
B11: June | C11: Ligne A | D11: Ligne AJune | E11: Ressource | F11: 9 | G11: 30 | H11: 51 | I11: 72 | J11: 93 | K11: 114 | L11: 135 | M11: 156 | N11: 177 | O11: 198 | P11: 219 | Q11: 240 | R11: 261 | S11: 282 | T11: 2,037
B12: July | C12: Ligne A | D12: Ligne AJuly | E12: Ressource | F12: 10 | G12: 31 | H12: 52 | I12: 73 | J12: 94 | K12: 115 | L12: 136 | M12: 157 | N12: 178 | O12: 199 | P12: 220 | Q12: 241 | R12: 262 | S12: 283 | T12: 2,051
B13: August | C13: Ligne A | D13: Ligne AAugust | E13: Ressource | F13: 24 | G13: 45 | H13: 66 | I13: 87 | J13: 108 | K13: 129 | L13: 150 | M13: 171 | N13: 192 | O13: 213 | P13: 234 | Q13: 255 | R13: 276 | S13: 297 | T13: 2,247
B14: September | C14: Ligne A | D14: Ligne ASeptember | E14: Ressource | F14: 20 | G14: 41 | H14: 62 | I14: 83 | J14: 104 | K14: 125 | L14: 146 | M14: 167 | N14: 188 | O14: 209 | P14: 230 | Q14: 251 | R14: 272 | S14: 293 | T14: 2,191
B15: October | C15: Ligne A | D15: Ligne AOctober | E15: Ressource | F15: 5 | G15: 26 | H15: 47 | I15: 68 | J15: 89 | K15: 110 | L15: 131 | M15: 152 | N15: 173 | O15: 194 | P15: 215 | Q15: 236 | R15: 257 | S15: 278 | T15: 1,981
B16: November | C16: Ligne A | D16: Ligne ANovember | E16: Ressource | F16: 2 | G16: 23 | H16: 44 | I16: 65 | J16: 86 | K16: 107 | L16: 128 | M16: 149 | N16: 170 | O16: 191 | P16: 212 | Q16: 233 | R16: 254 | S16: 275 | T16: 1,939
B17: December | C17: Ligne A | D17: Ligne ADecember | E17: Ressource | F17: 8 | G17: 29 | H17: 50 | I17: 71 | J17: 92 | K17: 113 | L17: 134 | M17: 155 | N17: 176 | O17: 197 | P17: 218 | Q17: 239 | R17: 260 | S17: 281 | T17: 2,023
B18: January 2016 | C18: Ligne A | D18: Ligne AJanuary 2016 | E18: Ressource | F18: 7 | G18: 28 | H18: 49 | I18: 70 | J18: 91 | K18: 112 | L18: 133 | M18: 154 | N18: 175 | O18: 196 | P18: 217 | Q18: 238 | R18: 259 | S18: 280 | T18: 2,009
B20: Production plan adherence | F20: =F7/F5 -> 17% | G20: =G7/G5 -> 62% | H20: =H7/H5 -> 75% | I20: 81% | J20: =J7/J5 -> 85% | K20: =K8/K6 -> 104% | L20: =L8/L6 -> 103% | M20: 103% | N20: =N8/N6 -> 102% | O20: =O9/O7 -> 102% | P20: =P9/P7 -> 102% | Q20: 102% | R20: =R9/R7 -> 102% | S20: =S10/S8 -> 101%

Sheet Italie
B2: France
G3: POO1 | K3: POO2 | O3: POO3
F4: 1A | G4: 1B | H4: 1C | I4: 1D | J4: 1E | K4: 2A | L4: 2B | M4: 2C | N4: 2D | O4: 3A | P4: 3B | Q4: 3C | R4: 3D | S4: 3E | T4: TOTAL
B5: December 2014 | C5: Ligne A | D5: =CONCATENATE(C5,B5) -> Ligne ADecember 2014 | E5: Ressource | F5: 2 | G5: =3+F5 -> 5 | H5: =3+G5 -> 8 | I5: 11 | J5: 14 | K5: 17 | L5: 20 | M5: 23 | N5: 26 | O5: 29 | P5: 32 | Q5: 35 | R5: 38 | S5: 41 | T5: =SUM(F5:S5) -> 301
B6: January | C6: Ligne A | D6: Ligne AJanuary | E6: Ressource | F6: 2 | G6: =3+F6 -> 5 | H6: =3+G6 -> 8 | I6: 11 | J6: 14 | K6: 17 | L6: 20 | M6: 23 | N6: 26 | O6: 29 | P6: 32 | Q6: 35 | R6: 38 | S6: 41 | T6: 301
B7: February | C7: Ligne A | D7: Ligne AFebruary | E7: Ressource | F7: 4 | G7: 7 | H7: 10 | I7: 13 | J7: 16 | K7: 19 | L7: 22 | M7: 25 | N7: 28 | O7: 31 | P7: 34 | Q7: 37 | R7: 40 | S7: 43 | T7: 329
B8: March | C8: Ligne A | D8: Ligne AMarch | E8: Ressource | F8: 5 | G8: 8 | H8: 11 | I8: 14 | J8: 17 | K8: 20 | L8: 23 | M8: 26 | N8: 29 | O8: 32 | P8: 35 | Q8: 38 | R8: 41 | S8: 44 | T8: 343
B9: April | C9: Ligne A | D9: Ligne AApril | E9: Ressource | F9: 3 | G9: 6 | H9: 9 | I9: 12 | J9: 15 | K9: 18 | L9: 21 | M9: 24 | N9: 27 | O9: 30 | P9: 33 | Q9: 36 | R9: 39 | S9: 42 | T9: 315
B10: May | C10: Ligne A | D10: Ligne AMay | E10: Ressource | F10: 7 | G10: 10 | H10: 13 | I10: 16 | J10: 19 | K10: 22 | L10: 25 | M10: 28 | N10: 31 | O10: 34 | P10: 37 | Q10: 40 | R10: 43 | S10: 46 | T10: 371
B11: June | C11: Ligne A | D11: Ligne AJune | E11: Ressource | F11: 8 | G11: 11 | H11: 14 | I11: 17 | J11: 20 | K11: 23 | L11: 26 | M11: 29 | N11: 32 | O11: 35 | P11: 38 | Q11: 41 | R11: 44 | S11: 47 | T11: 385
B12: July | C12: Ligne A | D12: Ligne AJuly | E12: Ressource | F12: 9 | G12: 12 | H12: 15 | I12: 18 | J12: 21 | K12: 24 | L12: 27 | M12: 30 | N12: 33 | O12: 36 | P12: 39 | Q12: 42 | R12: 45 | S12: 48 | T12: 399
B13: August | C13: Ligne A | D13: Ligne AAugust | E13: Ressource | F13: 10 | G13: 13 | H13: 16 | I13: 19 | J13: 22 | K13: 25 | L13: 28 | M13: 31 | N13: 34 | O13: 37 | P13: 40 | Q13: 43 | R13: 46 | S13: 49 | T13: 413
B14: September | C14: Ligne A | D14: Ligne ASeptember | E14: Ressource | F14: 22 | G14: 25 | H14: 28 | I14: 31 | J14: 34 | K14: 37 | L14: 40 | M14: 43 | N14: 46 | O14: 49 | P14: 52 | Q14: 55 | R14: 58 | S14: 61 | T14: 581
B15: October | C15: Ligne A | D15: Ligne AOctober | E15: Ressource | F15: 1 | G15: 4 | H15: 7 | I15: 10 | J15: 13 | K15: 16 | L15: 19 | M15: 22 | N15: 25 | O15: 28 | P15: 31 | Q15: 34 | R15: 37 | S15: 40 | T15: 287
B16: November | C16: Ligne A | D16: Ligne ANovember | E16: Ressource | F16: 5 | G16: 8 | H16: 11 | I16: 14 | J16: 17 | K16: 20 | L16: 23 | M16: 26 | N16: 29 | O16: 32 | P16: 35 | Q16: 38 | R16: 41 | S16: 44 | T16: 343
B17: December | C17: Ligne A | D17: Ligne ADecember | E17: Ressource | F17: 8 | G17: 11 | H17: 14 | I17: 17 | J17: 20 | K17: 23 | L17: 26 | M17: 29 | N17: 32 | O17: 35 | P17: 38 | Q17: 41 | R17: 44 | S17: 47 | T17: 385
B18: January 2016 | C18: Ligne A | D18: Ligne AJanuary 2016 | E18: Ressource | F18: 9 | G18: 12 | H18: 15 | I18: 18 | J18: 21 | K18: 24 | L18: 27 | M18: 30 | N18: 33 | O18: 36 | P18: 39 | Q18: 42 | R18: 45 | S18: 48 | T18: 399
B20: Production plan adherence | F20: =F7/F5 -> 200% | G20: =G7/G5 -> 140% | H20: =H7/H5 -> 125% | I20: 118% | J20: =J7/J5 -> 114% | K20: =K8/K6 -> 118% | L20: =L8/L6 -> 115% | M20: 113% | N20: =N8/N6 -> 112% | O20: =O9/O7 -> 97% | P20: =P9/P7 -> 97% | Q20: 97% | R20: =R9/R7 -> 98% | S20: =S10/S8 -> 105%
